bitfinex/quotes_SOLUSD_20241121
["timestamp","ask_amount","ask_price","bid_price","bid_amount"]
[1732197127724,22.89351254,245.5,245.42,20.0]
[1732197127893,22.89351254,245.48,245.42,20.0]
[1732197128097,23.776884,245.55,245.42,20.0]
[1732197128297,22.89351254,245.49,245.41,42.89351254]
[1732197128527,22.89351254,245.49,245.42,14.2612]
[1732197129397,22.89351254,245.51,245.43,22.89351254]
[1732197129598,22.89351254,245.51,245.44,14.26]
[1732197129805,22.89351254,245.53,245.45,22.89351254]
[1732197130021,22.89351254,245.55,245.46,20.0]
[1732197130222,22.89351254,245.55,245.46,50.7355]
[1732197130703,22.89351254,245.53,245.46,50.7355]
[1732197130905,22.89351254,245.53,245.47,14.2583]
[1732197132124,39.83552241,245.64,245.47,10.1845]
[1732197132125,22.89351254,245.49,245.47,10.1845]
[1732197133122,22.89351254,245.49,245.41,14.2618]
[1732197133427,22.89351254,245.47,245.41,14.2618]
[1732197133606,22.89351254,245.49,245.41,14.2618]
[1732197134426,22.89351254,245.47,245.41,14.2618]
[1732197134724,23.776884,245.57,245.41,14.2618]
[1732197134725,22.89351254,245.49,245.42,20.0]
[1732197135198,22.89351254,245.47,245.41,14.2618]
[1732197135397,0.5,245.57,245.41,14.2618]
[1732197135398,4.0681,245.81,245.59,0.5]
[1732197135625,22.89351254,245.68,245.61,20.0]
[1732197135825,22.89351254,245.67,245.61,20.0]
[1732197136014,22.89351254,245.69,245.61,20.0]
[1732197136327,22.89351254,245.72,245.62,22.89351254]
[1732197136510,22.89351254,245.7,245.62,10.1781]
[1732197136829,22.89351254,245.7,245.62,14.2494]
[1732197137418,22.89351254,245.7,245.62,10.1781]
[1732197137727,22.89351254,245.68,245.62,10.1781]
[1732197137929,22.89351254,245.66,245.6,4.0716]
[1732197138127,22.89351254,245.64,245.58,4.0719]
[1732197138725,22.89351254,245.64,245.57,10.1803]
[1732197139633,22.89351254,245.64,245.57,14.2524]
[1732197139823,22.89351254,245.64,245.57,10.1803]
[1732197140131,26.96461254,245.64,245.57,10.1803]
[1732197140328,22.89351254,245.62,245.52,22.89351254]
[1732197140629,22.89351254,245.64,245.55,22.89351254]
[1732197141312,22.89351254,245.66,245.57,22.89351254]
[1732197141527,22.89351254,245.66,245.57,26.96551254]
[1732197141931,26.96421254,245.66,245.57,26.96551254]
[1732197142128,26.96421254,245.66,245.57,37.14581254]
[1732197142438,22.89351254,245.72,245.63,22.89351254]
[1732197143710,22.89351254,245.7,245.61,22.89351254]
[1732197144736,22.89351254,245.68,245.59,22.89351254]
[1732197145126,22.89351254,245.66,245.57,22.89351254]
[1732197145318,22.89351254,245.64,245.57,20.0]
[1732197145637,22.89351254,245.66,245.57,42.89351254]
[1732197145817,26.96391254,245.68,245.59,22.89351254]
[1732197146131,22.89351254,245.7,245.61,22.89351254]
[1732197147112,22.89351254,245.7,245.62,14.2496]
[1732197147315,22.89351254,245.7,245.63,22.89351254]
[1732197147515,22.89351254,245.7,245.62,14.2496]
[1732197147734,22.89351254,245.68,245.62,14.2496]
[1732197148049,22.89351254,245.66,245.62,14.2496]
[1732197148411,22.89351254,245.66,245.62,10.1783]
[1732197150243,22.89351254,245.65,245.57,14.2523]
[1732197150938,22.89351254,245.63,245.57,14.2523]
[1732197151927,22.89351254,245.61,245.52,22.89351254]
[1732197152137,22.89351254,245.57,245.53,4.0727]
[1732197152844,22.89351254,245.61,245.53,14.2547]
[1732197153141,22.89351254,245.63,245.54,22.89351254]
[1732197153531,22.89351254,245.61,245.55,14.2536]
[1732197154371,20.0,245.69,245.55,14.2536]
[1732197154649,22.89351254,245.6,245.55,14.2536]
[1732197155432,22.89351254,245.6,245.52,20.0]
[1732197156727,14.30937996,245.6,245.52,20.0]
[1732197156945,14.30937996,245.6,245.54,20.0]
[1732197157245,14.30937996,245.68,245.6,20.0]
[1732197157942,14.30937996,245.64,245.57,20.0]
[1732197158153,14.30937996,245.62,245.57,20.0]
[1732197158328,14.30937996,245.62,245.56,43.2307]
[1732197158532,14.30937996,245.62,245.53,48.92827996]
[1732197158831,22.89328324,245.61,245.53,34.6189]
[1732197159626,22.89328324,245.61,245.54,20.0]
[1732197159840,22.89328324,245.59,245.54,20.0]
[1732197160144,22.89328324,245.61,245.54,20.0]
[1732197160447,22.89328324,245.63,245.54,42.89328324]
[1732197160956,22.89328324,245.63,245.55,14.2536]
[1732197161164,22.89328324,245.63,245.55,34.616]
[1732197162155,22.89328324,245.65,245.56,42.89328324]
[1732197162831,22.89328324,245.63,245.56,20.0]
[1732197163045,22.89328324,245.63,245.57,14.2524]
[1732197163538,22.89328324,245.61,245.57,14.2524]
[1732197164131,24.276884,245.73,245.57,14.2524]
[1732197164340,22.89328324,245.62,245.57,14.2524]
[1732197164850,22.89328324,245.6,245.57,14.2524]
[1732197165069,22.89328324,245.58,245.53,10.182]
[1732197166255,22.89328324,245.58,245.53,14.2547]
[1732197167135,22.89328324,245.58,245.53,10.182]
[1732197167449,22.89328324,245.6,245.53,10.182]
[1732197170042,22.89328324,245.62,245.54,42.89328324]
[1732197170854,22.89328324,245.62,245.55,34.616]
[1732197171055,22.89328324,245.64,245.55,34.616]
[1732197171256,20.0,245.72,245.56,22.89328324]
[1732197171257,22.89328324,245.66,245.56,22.89328324]
[1732197172170,22.89328324,245.64,245.57,14.2524]
[1732197172353,22.89328324,245.64,245.57,34.6131]
[1732197172538,22.89328324,245.68,245.58,22.89328324]
[1732197173779,22.89328324,245.68,245.59,34.6104]
[1732197175385,22.89328324,245.66,245.59,34.6104]
[1732197176651,22.89328324,245.66,245.59,30.5386]
[1732197177969,22.89328324,245.64,245.59,30.5386]
[1732197178651,14.30277678,245.65,245.59,10.1795]
[1732197178848,14.30277678,245.64,245.59,10.1795]
[1732197179052,14.30277678,245.66,245.59,10.1795]
[1732197179878,14.30277678,245.64,245.59,10.1795]
[1732197182465,14.30277678,245.62,245.59,10.1795]
[1732197183066,14.30277678,245.62,245.57,4.0721]
[1732197183268,14.30277678,245.6,245.55,14.2535]
[1732197183478,14.30277678,245.58,245.55,14.2535]
[1732197183861,14.30277678,245.6,245.55,14.2535]
[1732197184274,14.30277678,245.6,245.55,10.1812]
[1732197186579,14.30277678,245.62,245.55,10.1812]
[1732197186773,14.30277678,245.66,245.57,14.30277678]
[1732197187671,14.30277678,245.66,245.58,14.2518]
[1732197187866,14.30277678,245.68,245.58,14.2518]
[1732197188965,14.30277678,245.68,245.59,14.30277678]
[1732197190387,14.30277678,245.66,245.57,14.30277678]
[1732197190992,14.30277678,245.64,245.55,14.30277678]
[1732197191195,14.30277678,245.62,245.56,14.2531]
[1732197191488,14.30277678,245.64,245.56,14.2531]
[1732197192486,14.30277678,245.66,245.57,14.30277678]
[1732197193176,14.30277678,245.68,245.59,14.30277678]
[1732197193374,42.91362792,245.75,245.56,34.6147]
[1732197193375,14.30277678,245.66,245.57,14.30277678]
[1732197194075,14.30277678,245.66,245.58,34.6117]
[1732197194877,15.30277678,245.66,245.58,34.6117]
[1732197195278,1.0,245.66,245.59,14.30277678]
[1732197195481,1.0,245.66,245.63,14.30277678]
[1732197196093,1.0,245.66,245.63,14.05833678]
[1732197196967,1.0,245.66,245.6,45.4052]
[1732197197281,1.0,245.66,245.62,14.2496]
[1732197197479,14.30277678,245.71,245.62,34.6062]
[1732197198271,14.30277678,245.71,245.62,48.90897678]
[1732197199599,14.30277678,245.69,245.62,34.6062]
[1732197199799,14.30277678,245.69,245.62,48.90897678]
[1732197200376,14.30277678,245.71,245.62,48.90897678]
[1732197202891,14.30277678,245.73,245.64,14.30277678]
[1732197203096,14.30277678,245.75,245.66,14.30277678]
[1732197203876,14.30277678,245.75,245.67,14.2467]
[1732197204083,14.30277678,245.75,245.67,34.5992]
[1732197204282,14.30277678,245.78,245.69,14.30277678]
[1732197204578,14.30277678,245.85,245.77,14.30277678]
[1732197204772,14.30277678,245.87,245.79,14.30277678]
[1732197205585,6.77537138,245.93,245.77,14.30277678]
[1732197205586,14.30277678,245.85,245.77,14.30277678]
[1732197205799,14.30277678,245.83,245.75,14.30277678]
[1732197205998,14.30277678,245.85,245.76,14.2415]
[1732197206681,14.30277678,245.85,245.77,14.30277678]
[1732197207288,14.30277678,245.85,245.76,14.2415]
[1732197207289,14.30277678,245.85,245.78,14.2402]
[1732197207496,14.30277678,245.83,245.78,14.2402]
[1732197208995,14.30277678,245.83,245.75,20.3458]
[1732197209199,14.30277678,245.81,245.75,20.3458]
[1732197209402,23.776884,245.85,245.74,14.2426]
[1732197209403,14.30277678,245.79,245.74,14.2426]
[1732197210402,14.30277678,245.79,245.74,10.1733]
[1732197212101,14.30277678,245.81,245.74,10.1733]
[1732197212285,23.776884,245.8,245.74,10.1733]
[1732197212803,14.30277678,245.79,245.74,10.1733]
[1732197213795,14.30277678,245.79,245.7,14.245]
[1732197216311,23.776884,245.8,245.71,14.30277678]
[1732197216500,23.776884,245.82,245.75,14.30277678]
[1732197216702,23.776884,245.82,245.7,34.595]
[1732197216703,6.9064802,245.88,245.76,14.30277678]
[1732197217013,14.30277678,245.84,245.76,14.30277678]
[1732197217699,14.30277678,245.84,245.74,14.30277678]
[1732197218310,14.30277678,245.82,245.72,14.30277678]
[1732197218515,14.30277678,245.82,245.74,14.30277678]
[1732197219813,14.30277678,245.82,245.75,14.242]
[1732197220011,14.30277678,245.84,245.75,14.242]
[1732197220211,14.30277678,245.84,245.76,14.30277678]
[1732197220508,14.30277678,245.84,245.75,14.242]
[1732197220906,23.776884,245.89,245.76,34.30277678]
[1732197221109,14.30277678,245.86,245.76,34.30277678]
[1732197221612,14.30277678,245.84,245.76,34.30277678]
[1732197221806,14.30277678,245.84,245.77,14.2409]
[1732197222696,27.843784,245.89,245.77,14.2409]
[1732197223015,14.30277678,245.85,245.77,14.2409]
[1732197226293,14.30277678,245.87,245.79,14.2397]
[1732197226814,14.30277678,245.85,245.79,14.2397]
[1732197227394,14.30277678,245.85,245.79,10.1712]
[1732197227911,14.30277678,245.83,245.79,10.1712]
[1732197228719,9.13964173,245.83,245.79,10.1712]
[1732197230214,9.13964173,245.81,245.79,10.1712]
[1732197231228,9.13964173,245.81,245.75,20.3458]
[1732197231693,9.13964173,245.79,245.75,20.3458]
[1732197231895,9.13964173,245.79,245.73,14.2432]
[1732197232601,23.776884,245.83,245.73,14.2432]
[1732197232805,9.13964173,245.78,245.73,10.1737]
[1732197233195,23.776884,245.84,245.73,19.31334173]
[1732197233400,23.776884,245.82,245.73,19.31334173]
[1732197233824,31.4254,245.85,245.75,9.13964173]
[1732197233825,23.776884,245.84,245.75,9.13964173]
[1732197234003,32.91652573,245.84,245.75,9.13964173]
[1732197234522,31.4254,245.85,245.73,19.31334173]
[1732197234697,9.13964173,245.83,245.73,19.31334173]
[1732197235521,9.13964173,245.83,245.75,9.13964173]
[1732197236017,9.13964173,245.83,245.73,43.73034173]
[1732197237018,9.13964173,245.81,245.73,34.5907]
[1732197237217,9.13964173,245.79,245.73,34.5907]
[1732197239311,9.13964173,245.79,245.73,30.5212]
[1732197241937,9.13964173,245.79,245.73,10.1737]
[1732197242306,9.13964173,245.77,245.73,10.1737]
[1732197242514,9.13964173,245.78,245.73,10.1737]
[1732197242828,23.776884,245.83,245.7,29.48964173]
[1732197243029,9.13964173,245.79,245.7,29.48964173]
[1732197243914,9.13964173,245.79,245.7,43.73464173]
[1732197244111,9.13964173,245.77,245.7,34.595]
[1732197245028,9.13964173,245.79,245.7,39.66464173]
[1732197245525,9.13964173,245.77,245.7,39.66464173]
[1732197245907,9.13964173,245.79,245.7,43.73464173]
[1732197246103,23.776884,245.81,245.7,34.595]
[1732197246330,23.0399,245.92,245.74,9.13964173]
[1732197246531,9.13964173,245.83,245.74,9.13964173]
[1732197246709,23.0399,245.92,245.7,34.595]
[1732197246710,35.7152,245.9,245.76,9.13964173]
[1732197246910,9.13964173,245.85,245.76,9.13964173]
[1732197247410,9.13964173,245.83,245.74,9.13964173]
[1732197247815,9.13964173,245.83,245.75,14.242]
[1732197248229,9.13964173,245.86,245.77,31.2776]
[1732197248621,9.13964173,245.86,245.78,9.13964173]
[1732197248825,9.13964173,245.86,245.78,22.34634173]
[1732197249330,9.13964173,245.86,245.79,14.2397]
[1732197249518,16.4274,245.98,245.79,34.5822]
[1732197249832,9.13964173,245.9,245.81,9.13964173]
[1732197250524,9.13964173,245.9,245.82,14.238]
[1732197252435,9.13964173,245.9,245.83,9.13964173]
[1732197252638,23.776884,245.95,245.83,9.13964173]
[1732197252842,9.13964173,245.91,245.83,9.13964173]
[1732197253222,9.13964173,245.89,245.82,10.17]
[1732197254460,9.13964173,245.89,245.82,14.238]
[1732197255510,23.776884,245.95,245.83,9.13964173]
[1732197255511,9.13964173,245.91,245.83,9.13964173]
[1732197255720,9.13964173,245.94,245.85,9.13964173]
[1732197256521,9.13964173,245.92,245.83,9.13964173]
[1732197257414,10.6614,246.03,245.82,34.578]
[1732197257415,0.5,246.1,245.9,9.13964173]
[1732197257635,4.0632,246.11,245.95,9.13964173]
[1732197257944,9.13964173,245.98,245.91,34.5654]
[1732197258118,9.13964173,245.96,245.91,34.5654]
[1732197259033,4.0637,246.08,245.91,43.70504173]
[1732197259233,9.13964173,246.0,245.91,43.70504173]
[1732197259625,4.0637,246.08,245.91,43.70504173]
[1732197259626,9.13964173,245.98,245.91,43.70504173]
[1732197259950,9.13964173,245.98,245.91,34.5654]
[1732197260837,0.5,246.14,245.93,9.13964173]
[1732197261025,9.13964173,246.1,246.02,9.13964173]
[1732197261647,2.7,246.21,245.94,42.6809]
[1732197261648,0.5,246.21,246.06,9.13964173]
[1732197261827,9.13964173,246.15,246.06,9.13964173]
[1732197262026,9.13964173,246.15,246.07,14.2235]
[1732197262849,9.13964173,246.13,246.07,14.2235]
[1732197263629,8.63964173,246.13,246.07,14.2235]
[1732197264256,8.63964173,246.13,246.07,10.1597]
[1732197264550,9.13964173,246.15,246.07,10.1597]
[1732197264749,14.24359772,246.15,246.07,10.1597]
[1732197265640,14.24359772,246.15,246.07,14.2235]
[1732197266468,14.24359772,246.13,246.07,14.2235]
[1732197267161,14.24359772,246.11,246.07,14.2235]
[1732197267656,14.24359772,246.09,246.02,14.2263]
[1732197268045,14.24359772,246.07,246.02,14.2263]
[1732197269552,14.24359772,246.07,246.02,10.1616]
[1732197272650,7.08278495,246.19,246.02,10.1616]
[1732197272651,4.063,246.12,246.02,10.1616]
[1732197272963,14.24359772,246.07,246.02,10.1616]
[1732197273672,4.062,246.18,246.04,14.24359772]
[1732197273845,14.24359772,246.12,246.04,14.24359772]
[1732197275366,14.24359772,246.12,246.05,14.2247]
[1732197275862,4.0618,246.2,246.05,14.2247]
[1732197275863,14.24359772,246.14,246.05,14.2247]
[1732197276038,14.24359772,246.14,246.06,14.24359772]
[1732197276237,14.24359772,246.14,246.05,14.2247]
[1732197276661,23.776884,246.21,246.05,34.5457]
[1732197276837,14.24359772,246.11,246.05,14.2247]
[1732197277463,14.24359772,246.24,246.05,14.2247]
[1732197277464,14.24359772,246.13,246.05,10.1605]
[1732197278538,14.24359772,246.13,246.05,14.2247]
[1732197282847,14.24359772,246.13,246.05,34.5457]
[1732197283256,14.24359772,246.11,246.05,34.5457]
[1732197283968,14.24359772,246.13,246.05,34.5457]
[1732197284641,9.12073068,246.08,246.05,14.2247]
[1732197285369,9.12073068,246.06,246.01,9.1459]
[1732197286164,9.12073068,246.04,246.01,9.1459]
[1732197286475,9.12073068,246.02,245.97,9.1473]
[1732197289378,9.12073068,246.0,245.97,9.1473]
[1732197289581,9.12073068,245.98,245.87,37.8317]
[1732197289878,9.12073068,245.9,245.87,37.8317]
[1732197290250,43.776884,245.99,245.88,9.1506]
[1732197290674,9.12073068,245.89,245.88,9.1506]
[1732197291347,9.12073068,245.89,245.83,20.3389]
[1732197292469,43.776884,245.99,245.81,12.8147]
[1732197292470,9.12073068,245.85,245.81,12.8147]
[1732197292654,14.28065667,245.82,245.81,12.8147]
[1732197293551,11.3935,245.94,245.76,14.28065667]
[1732197293747,14.28065667,245.86,245.78,14.28065667]
[1732197293951,14.28065667,245.88,245.8,14.28065667]
[1732197294656,14.28065667,245.9,245.82,14.28065667]
[1732197295858,14.28065667,245.9,245.83,12.8136]
[1732197296369,14.28065667,245.88,245.83,12.8136]
[1732197296680,50.61673042,245.99,245.78,9.1543]
[1732197296681,14.28065667,245.84,245.78,9.1543]
[1732197296975,14.28065667,245.82,245.78,9.1543]
[1732197298165,14.28065667,245.84,245.78,9.1543]
[1732197298569,20.0,245.91,245.78,23.43495667]
[1732197298784,32.308,245.98,245.84,14.28065667]
[1732197299082,14.28065667,245.92,245.84,14.28065667]
[1732197299463,14.28065667,245.9,245.82,14.28065667]
[1732197299663,14.28065667,245.9,245.8,14.28065667]
[1732197300758,14.28065667,245.9,245.81,12.8147]
[1732197301390,14.28065667,245.86,245.81,12.8147]
[1732197301569,14.28065667,245.84,245.81,12.8147]
[1732197301768,14.28065667,245.86,245.81,12.8147]
[1732197302089,14.28065667,245.82,245.79,3.6615]
[1732197302773,14.28065667,245.84,245.79,9.1541]
[1732197302977,22.0082,246.0,245.82,14.28065667]
[1732197303166,14.28065667,245.9,245.82,14.28065667]
[1732197303965,14.28065667,245.9,245.83,12.8136]
[1732197304860,14.28065667,245.91,245.83,12.8136]
[1732197305257,4.066,245.95,245.83,12.8136]
[1732197305258,28.2427,245.98,245.88,14.28065667]
[1732197305480,14.28065667,246.0,245.92,14.28065667]
[1732197306687,14.28065667,246.0,245.93,12.8084]
[1732197307187,14.28065667,245.96,245.91,3.6598]
[1732197307371,14.28065667,245.94,245.89,3.66]
[1732197308591,14.28065667,245.94,245.88,9.1506]
[1732197309480,14.28065667,245.96,245.88,9.1506]
[1732197309994,14.28065667,245.96,245.88,23.43125667]
[1732197310671,14.28065667,245.96,245.88,27.09155667]
[1732197313282,14.28065667,245.96,245.88,12.8109]
[1732197313889,14.28065667,245.94,245.88,12.8109]
[1732197314400,14.28065667,245.92,245.88,12.8109]
[1732197314576,14.28065667,245.92,245.85,11.2588]
[1732197314774,14.28065667,245.92,245.86,3.6605]
[1732197314965,14.28065667,246.0,245.83,9.1522]
[1732197314966,14.28065667,245.88,245.83,9.1522]
[1732197315166,14.28065667,245.84,245.81,3.6612]
[1732197316197,14.28065667,245.84,245.79,12.8156]
[1732197317004,14.28065667,245.84,245.79,9.1541]
[1732197317896,14.28065667,245.88,245.79,23.43475667]
[1732197318082,14.28065667,245.86,245.79,9.1541]
[1732197319100,14.28065667,245.84,245.79,9.1541]
[1732197319604,4.0663,245.92,245.79,9.1541]
[1732197319605,14.28065667,245.86,245.79,23.43475667]
[1732197319974,14.28065667,245.86,245.79,9.1541]
[1732197321579,14.28065667,245.88,245.79,23.43475667]
[1732197322369,12.8637,245.98,245.79,23.43475667]
[1732197322370,14.28065667,245.9,245.81,14.28065667]
[1732197322570,14.28065667,245.9,245.83,14.28065667]
[1732197322774,14.28065667,245.9,245.84,12.8131]
[1732197324495,14.28065667,245.9,245.81,14.28065667]
[1732197325300,14.28065667,245.92,245.83,14.28065667]
[1732197325498,14.28065667,245.92,245.84,12.8131]
[1732197325807,14.28065667,245.92,245.83,14.28065667]
[1732197325808,14.28065667,245.86,245.78,18.309]
[1732197326102,14.28065667,245.84,245.8,9.1537]
[1732197326310,14.28065667,245.82,245.8,9.1537]
[1732197327698,14.28065667,245.82,245.75,12.8178]
[1732197329195,14.28065667,245.86,245.77,14.28065667]
[1732197329391,16.3704,245.92,245.75,12.8178]
[1732197329392,14.28065667,245.88,245.79,14.28065667]
[1732197329786,14.28065667,245.86,245.77,14.28065667]
[1732197329995,14.28065667,245.84,245.75,27.09845667]
[1732197330832,14.28065667,245.82,245.75,12.8178]
[1732197331109,4.0668,245.9,245.75,23.43625667]
[1732197331308,14.28065667,245.85,245.75,23.43625667]
[1732197331999,14.28065667,245.83,245.75,23.43625667]
[1732197332196,14.28065667,245.83,245.75,27.09845667]
[1732197332502,14.28065667,245.83,245.75,12.8178]
[1732197332709,14.28065667,245.81,245.75,12.8178]
[1732197333888,14.28065667,245.79,245.75,9.1556]
[1732197334104,14.28065667,245.77,245.7,9.1574]
[1732197334406,15.2742,245.8,245.7,9.1574]
[1732197334407,14.28065667,245.75,245.7,9.1574]
[1732197334605,14.28065667,245.77,245.7,9.1574]
[1732197334806,14.28065667,245.77,245.7,23.43805667]
[1732197335421,14.28065667,245.75,245.7,9.1574]
[1732197335598,14.28065667,245.73,245.65,18.3181]
[1732197336096,14.28065667,245.73,245.65,32.59875667]
[1732197336818,14.28065667,245.75,245.65,32.59875667]
[1732197337596,14.28065667,245.75,245.65,31.1411]
[1732197337797,14.28065667,245.75,245.66,14.28065667]
[1732197338096,14.28065667,245.73,245.65,31.1411]
[1732197338409,14.28065667,245.71,245.65,12.823]
[1732197339692,14.28065667,245.67,245.6,3.6643]
[1732197339892,14.28065667,245.64,245.6,3.6643]
[1732197340089,5.0691,245.75,245.59,9.1614]
[1732197340090,14.28065667,245.62,245.59,9.1614]
[1732197340314,14.28065667,245.62,245.59,12.826]
[1732197340612,14.28065667,245.6,245.54,12.8285]
[1732197340995,14.28065667,245.58,245.54,12.8285]
[1732197341507,14.28065667,245.58,245.54,9.1632]
[1732197342331,14.28065667,245.6,245.54,9.1632]
[1732197342830,14.28065667,245.58,245.54,9.1632]
[1732197343020,14.28065667,245.56,245.48,6.6024]
[1732197343198,14.28065667,245.56,245.5,3.6659]
[1732197344705,14.28065667,245.52,245.49,9.1653]
[1732197344910,14.28065667,245.52,245.49,12.8314]
[1732197345819,14.28065667,245.54,245.49,9.1653]
[1732197346395,14.28065667,245.6,245.51,14.28065667]
[1732197346602,14.28065667,245.62,245.53,14.28065667]
[1732197347114,6.5179,245.71,245.49,9.77620192]
[1732197347115,14.28065667,245.64,245.55,14.28065667]
[1732197347504,30.05595667,245.68,245.59,14.28065667]
[1732197347699,14.28065667,245.68,245.6,12.8256]
[1732197347915,14.28065667,245.7,245.61,14.28065667]
[1732197348200,14.28065667,245.74,245.65,14.28065667]
[1732197349219,14.28065667,245.72,245.63,14.28065667]
[1732197349817,14.28065667,245.72,245.64,12.8235]
[1732197350716,22.86911542,245.72,245.64,35.69261542]
[1732197351509,22.86911542,245.7,245.64,9.1597]
[1732197352421,22.86911542,245.72,245.64,9.1597]
[1732197352803,15.5872,245.79,245.64,9.1597]
[1732197352804,22.86911542,245.7,245.64,9.1597]
[1732197353204,26.93811542,245.76,245.64,9.1597]
[1732197353437,22.86911542,245.68,245.64,9.1597]
[1732197353622,22.86911542,245.66,245.64,9.1597]
[1732197354509,22.86911542,245.68,245.64,9.1597]
[1732197355129,22.86911542,245.73,245.65,22.86911542]
[1732197355611,22.86911542,245.73,245.64,9.1597]
[1732197356015,22.86911542,245.71,245.64,9.1597]
[1732197356212,22.86911542,245.71,245.64,12.8235]
[1732197356527,22.86911542,245.69,245.64,12.8235]
[1732197357736,22.86911542,245.69,245.64,9.1597]
[1732197358924,22.86911542,245.69,245.61,18.3217]
[1732197359130,22.86911542,245.69,245.59,22.86911542]
[1732197359330,22.86911542,245.67,245.59,22.86911542]
[1732197359834,22.86911542,245.67,245.56,9.1627]
[1732197359835,22.86911542,245.6,245.56,9.1627]
[1732197360017,22.86911542,245.58,245.56,9.1627]
[1732197361138,22.86911542,245.58,245.51,9.1645]
[1732197361327,22.86911542,245.56,245.51,9.1645]
[1732197363736,22.86911542,245.58,245.51,9.1645]
[1732197363935,22.86911542,245.6,245.52,22.86911542]
[1732197365043,22.86911542,245.58,245.51,9.1645]
[1732197365253,22.86911542,245.64,245.56,22.86911542]
[1732197365542,39.07101542,245.67,245.58,22.86911542]
[1732197365743,22.86911542,245.65,245.59,12.8262]
[1732197365937,22.86911542,245.63,245.59,9.1616]
[1732197366352,22.86911542,245.61,245.54,9.1631]
[1732197366642,22.86911542,245.61,245.54,32.03221542]
[1732197367727,22.86911542,245.61,245.54,35.69751542]
[1732197368240,16.2019,245.67,245.54,35.69751542]
[1732197368241,22.86911542,245.59,245.54,12.8284]
[1732197368847,22.86911542,245.59,245.54,9.1631]
[1732197369145,22.86911542,245.59,245.54,12.8284]
[1732197370258,26.94091542,245.59,245.5,22.86911542]
[1732197370457,22.86911542,245.57,245.49,12.8312]
[1732197370953,16.2019,245.67,245.52,22.86911542]
[1732197370954,22.86911542,245.61,245.52,22.86911542]
[1732197371127,4.0712,245.63,245.49,12.8312]
[1732197371128,22.86911542,245.63,245.54,22.86911542]
[1732197371446,39.07101542,245.67,245.58,22.86911542]
[1732197371750,22.86911542,245.69,245.6,22.86911542]
[1732197372126,26.93931542,245.69,245.61,12.8251]
[1732197372330,22.86911542,245.67,245.61,12.8251]
[1732197372545,22.86911542,245.69,245.61,12.8251]
[1732197372746,14.29720213,245.69,245.61,12.8251]
[1732197373051,19.5139,245.79,245.66,14.29720213]
[1732197373226,14.29720213,245.75,245.66,14.29720213]
[1732197374152,14.29720213,245.75,245.67,12.822]
[1732197374820,22.86820975,245.73,245.67,12.822]
[1732197375034,22.86820975,245.69,245.65,4.0707]
[1732197375748,16.264016,245.92,245.65,4.0707]
[1732197375749,22.86820975,245.77,245.68,22.86820975]
[1732197376252,22.86820975,245.77,245.69,14.2455]
[1732197376624,22.86820975,245.79,245.72,22.86820975]
[1732197377630,22.86820975,245.79,245.71,14.2443]
[1732197378349,22.86820975,245.79,245.71,7.91785086]
[1732197379728,22.86820975,245.79,245.71,11.98765086]
[1732197382553,22.86820975,245.75,245.71,11.98765086]
[1732197383357,22.86820975,245.75,245.69,20.3508]
[1732197383557,6.62722197,245.86,245.67,10.1762]
[1732197383558,22.86820975,245.7,245.67,10.1762]
[1732197383744,22.86820975,245.68,245.57,22.86820975]
[1732197384055,22.86820975,245.68,245.58,34.6117]
[1732197384458,20.0,245.75,245.58,14.2518]
[1732197385042,22.86820975,245.66,245.58,37.12000975]
[1732197385345,22.86820975,245.66,245.58,14.2518]
[1732197385543,22.86820975,245.64,245.58,14.2518]
[1732197387059,4.0704,245.68,245.58,14.2518]
[1732197387261,22.86820975,245.65,245.58,14.2518]
[1732197387645,22.86820975,245.65,245.56,22.86820975]
[1732197387646,22.86820975,245.63,245.56,4.0722]
[1732197387970,22.86820975,245.6,245.54,4.0725]
[1732197388352,22.86820975,245.58,245.54,4.0725]
[1732197388753,22.86820975,245.58,245.53,10.1818]
[1732197392063,22.86820975,245.6,245.52,22.86820975]
[1732197393162,22.86820975,245.6,245.53,14.2548]
[1732197393354,22.86820975,245.62,245.54,22.86820975]
[1732197393547,22.86820975,245.62,245.53,14.2548]
[1732197393548,22.86820975,245.64,245.56,22.86820975]
[1732197394773,22.86820975,245.64,245.54,22.86820975]
[1732197395062,22.86820975,245.6,245.53,14.2548]
[1732197396663,14.3067214,245.61,245.53,28.5615214]
[1732197398760,14.3067214,245.63,245.55,14.3067214]
[1732197399869,32.80267322,245.71,245.54,4.0725]
[1732197399870,14.3067214,245.61,245.54,4.0725]